bitfinex/quotes_SOLUSD_20250802
["timestamp","ask_amount","ask_price","bid_price","bid_amount"]
[1754117120468,18.18644383,162.61,162.56,18.18644383]
[1754117120678,18.18644383,162.58,162.53,18.18644383]
[1754117120874,26.0,162.62,162.52,18.18644383]
[1754117120875,18.85644383,162.57,162.52,18.18644383]
[1754117121058,0.67,162.57,162.53,18.18644383]
[1754117121262,0.67,162.6,162.55,18.18644383]
[1754117121479,0.67,162.62,162.58,18.18644383]
[1754117121889,0.67,162.62,162.59,18.18644383]
[1754117122089,0.67,162.62,162.58,18.18644383]
[1754117122269,0.67,162.62,162.56,26.68]
[1754117122465,0.67,162.62,162.58,18.18644383]
[1754117122681,18.18644383,162.63,162.58,18.18644383]
[1754117123107,0.67,162.62,162.58,18.18644383]
[1754117123906,0.67,162.61,162.55,0.68]
[1754117124103,26.0,162.62,162.55,0.68]
[1754117124312,0.67,162.61,162.57,18.18644383]
[1754117124606,18.85644383,162.61,162.55,0.68]
[1754117124797,18.85644383,162.61,162.56,18.18644383]
[1754117125101,0.67,162.61,162.57,18.18644383]
[1754117125305,18.85644383,162.61,162.57,18.18644383]
[1754117125818,26.0,162.62,162.57,18.18644383]
[1754117125995,0.67,162.6,162.57,18.18644383]
[1754117126198,0.67,162.6,162.56,18.18644383]
[1754117126877,0.67,162.6,162.54,19.168275]
[1754117126878,0.67,162.6,162.55,16.78468397]
[1754117127090,0.67,162.6,162.56,18.18644383]
[1754117127291,26.67,162.62,162.57,18.18644383]
[1754117127516,44.85644383,162.62,162.57,18.86644383]
[1754117127721,18.18644383,162.59,162.54,18.488275]
[1754117127905,18.18644383,162.57,162.54,18.488275]
[1754117128091,0.67,162.58,162.54,36.67471883]
[1754117128417,191.16,162.6,162.54,0.06]
[1754117128418,18.85644383,162.57,162.54,0.06]
[1754117128808,18.18644383,162.58,162.54,0.06]
[1754117129109,18.18644383,162.58,162.54,0.74]
[1754117129284,18.85644383,162.59,162.55,0.68]
[1754117129712,18.85644383,162.59,162.54,0.06]
[1754117129892,18.85644383,162.58,162.54,0.06]
[1754117130406,0.67,162.57,162.54,0.06]
[1754117130583,191.16,162.6,162.54,0.06]
[1754117130584,18.85644383,162.56,162.54,0.06]
[1754117131206,18.18644383,162.57,162.54,0.06]
[1754117131407,191.88,162.6,162.56,18.18644383]
[1754117131618,191.16,162.6,162.56,18.86644383]
[1754117132017,18.90644383,162.59,162.54,0.06]
[1754117132314,191.16,162.6,162.56,18.18644383]
[1754117132512,210.06644383,162.6,162.55,18.18644383]
[1754117132712,191.88,162.6,162.56,18.86644383]
[1754117133295,191.16,162.6,162.56,18.86644383]
[1754117135117,191.88,162.6,162.56,18.18644383]
[1754117135420,191.16,162.6,162.57,18.18644383]
[1754117135914,210.06644383,162.6,162.56,18.18644383]
[1754117136213,0.72,162.59,162.56,18.18644383]
[1754117136410,209.34644383,162.6,162.56,18.18644383]
[1754117136808,191.88,162.6,162.56,18.18644383]
[1754117137004,0.72,162.59,162.55,18.18644383]
[1754117137318,0.72,162.59,162.56,18.18644383]
[1754117137692,209.34644383,162.6,162.56,18.18644383]
[1754117138021,0.72,162.59,162.54,26.74]
[1754117138316,0.72,162.59,162.56,18.18644383]
[1754117138518,191.16,162.6,162.56,18.18644383]
[1754117138717,18.90644383,162.59,162.55,18.18644383]
[1754117138919,0.72,162.59,162.55,18.18644383]
[1754117139120,18.90644383,162.59,162.55,18.18644383]
[1754117139921,0.72,162.59,162.55,18.18644383]
[1754117140122,209.34644383,162.6,162.55,18.86644383]
[1754117140421,0.72,162.59,162.55,18.86644383]
[1754117140795,0.72,162.59,162.54,26.06]
[1754117140796,18.18644383,162.56,162.54,0.06]
[1754117141000,63.20644383,162.57,162.54,0.06]
[1754117141217,63.92644383,162.57,162.54,0.06]
[1754117141599,63.20644383,162.57,162.54,0.06]
[1754117141922,0.72,162.56,162.54,0.06]
[1754117142238,26.0,162.62,162.55,18.86644383]
[1754117142531,45.4,162.63,162.56,0.68]
[1754117142697,45.4,162.63,162.6,18.18644383]
[1754117142898,64.30644383,162.65,162.6,0.68]
[1754117143096,0.72,162.64,162.6,18.18644383]
[1754117143297,18.18644383,162.62,162.57,18.18644383]
[1754117143597,0.72,162.61,162.57,18.18644383]
[1754117144120,18.90644383,162.67,162.6,18.18644383]
[1754117144321,18.90644383,162.67,162.62,18.18644383]
[1754117144491,64.28644383,162.67,162.62,18.86644383]
[1754117144692,18.18644383,162.64,162.6,18.18644383]
[1754117144922,0.72,162.64,162.6,18.18644383]
[1754117145427,18.18644383,162.65,162.6,18.18644383]
[1754117145428,18.18644383,162.65,162.6,18.86644383]
[1754117145728,18.90644383,162.65,162.6,18.86644383]
[1754117146702,0.72,162.65,162.61,18.18644383]
[1754117146924,18.90644383,162.65,162.61,18.18644383]
[1754117147511,45.36,162.66,162.62,18.86644383]
[1754117147717,45.36,162.66,162.62,18.18644383]
[1754117147902,45.36,162.66,162.65,18.18644383]
[1754117148239,63.50644383,162.69,162.65,18.86644383]
[1754117148402,64.22644383,162.69,162.64,18.18644383]
[1754117148601,0.72,162.68,162.64,18.86644383]
[1754117148818,0.03,162.68,162.65,0.68]
[1754117149828,0.03,162.68,162.65,18.18644383]
[1754117150033,0.03,162.68,162.66,0.68]
[1754117150742,0.03,162.68,162.67,0.68]
[1754117150910,0.03,162.68,162.67,18.86644383]
[1754117151111,0.03,162.68,162.67,35.6511278]
[1754117152908,0.03,162.68,162.67,41.79854281]
[1754117153230,0.03,162.7,162.69,42.78468397]
[1754117153434,0.03,162.7,162.69,61.58579372]
[1754117153733,0.03,162.7,162.69,107.52579372]
[1754117154436,0.03,162.7,162.69,61.6511278]
[1754117155317,0.03,162.7,162.69,43.46468397]
[1754117155718,0.03,162.7,162.69,62.26579372]
[1754117156147,0.03,162.7,162.69,86.59889684]
[1754117157447,0.03,162.72,162.69,86.59889684]
[1754117157448,0.03,162.72,162.7,26.78468397]
[1754117157737,0.03,162.72,162.71,80.82571817]
[1754117157911,0.03,162.74,162.73,16.78468397]
[1754117158116,0.03,162.74,162.73,34.9711278]
[1754117158432,0.03,162.74,162.73,36.26564264]
[1754117158944,0.03,162.74,162.73,42.41079104]
[1754117159236,0.03,162.74,162.73,36.26564264]
[1754117159652,0.03,162.74,162.73,42.41079104]
[1754117159850,0.03,162.74,162.73,36.26564264]
[1754117160273,0.03,162.74,162.73,42.41079104]
[1754117160655,0.03,162.74,162.73,52.41079104]
[1754117161167,0.03,162.76,162.75,42.78468397]
[1754117161375,0.03,162.78,162.76,16.78468397]
[1754117161572,0.03,162.78,162.77,35.58549162]
[1754117161752,0.03,162.78,162.77,36.27549162]
[1754117162135,0.03,162.78,162.77,80.9211278]
[1754117162544,0.03,162.78,162.77,83.99695462]
[1754117162878,0.03,162.8,162.78,22.92794481]
[1754117163178,0.03,162.8,162.78,59.99083247]
[1754117163542,0.03,162.8,162.79,53.84757163]
[1754117163884,0.03,162.8,162.79,54.46185997]
[1754117164464,0.03,162.8,162.79,63.32897231]
[1754117164689,0.03,162.8,162.79,99.70185997]
[1754117165170,0.03,162.8,162.79,105.84474343]
[1754117166218,0.2,162.82,162.81,42.78468397]
[1754117166486,0.2,162.85,162.84,42.78468397]
[1754117166669,0.2,162.85,162.84,106.2711278]
[1754117167494,0.2,162.85,162.84,106.9611278]
[1754117169597,0.2,162.85,162.84,60.9711278]
[1754117169884,0.2,162.85,162.84,106.9211278]
[1754117170272,0.2,162.85,162.8,0.69]
[1754117170594,0.86,162.85,162.84,18.18644383]
[1754117170898,0.2,162.85,162.84,80.3511278]
[1754117171196,0.86,162.85,162.84,63.56644383]
[1754117171411,0.86,162.85,162.83,18.18644383]
[1754117171568,0.2,162.85,162.82,71.4]
[1754117171768,0.2,162.85,162.84,18.18644383]
[1754117172100,0.2,162.85,162.84,80.3711278]
[1754117172303,0.2,162.85,162.84,62.87468397]
[1754117172609,0.2,162.85,162.84,80.3711278]
[1754117173092,0.2,162.85,162.84,62.18468397]
[1754117173296,0.2,162.85,162.84,80.3711278]
[1754117174685,0.86,162.85,162.83,46.64714983]
[1754117174907,0.66,162.84,162.81,18.18644383]
[1754117175071,0.66,162.84,162.81,45.36]
[1754117175275,0.66,162.83,162.81,45.36]
[1754117175467,0.66,162.82,162.81,62.14468397]
[1754117175770,0.66,162.82,162.81,80.3311278]
[1754117175971,0.66,162.84,162.81,80.3311278]
[1754117176170,0.66,162.84,162.82,18.18644383]
[1754117176793,0.2,162.85,162.81,80.3311278]
[1754117176976,0.66,162.83,162.8,26.0]
[1754117177178,0.66,162.82,162.8,45.32]
[1754117177373,0.66,162.81,162.8,45.32]
[1754117178499,0.66,162.83,162.8,63.50644383]
[1754117179512,0.66,162.83,162.81,18.18644383]
[1754117179815,19.04644383,162.85,162.81,18.18644383]
[1754117180019,0.86,162.85,162.81,18.18644383]
[1754117180186,0.66,162.84,162.81,18.18644383]
[1754117183104,0.2,162.85,162.81,18.18644383]
[1754117183306,0.86,162.85,162.8,45.32]
[1754117183499,0.66,162.84,162.81,18.18644383]
[1754117183810,0.66,162.83,162.8,63.50644383]
[1754117184122,0.86,162.85,162.81,18.18644383]
[1754117184289,0.86,162.85,162.82,18.18644383]
[1754117184791,0.2,162.85,162.84,18.18644383]
[1754117184995,0.2,162.85,162.84,80.2111278]
[1754117185297,0.2,162.85,162.84,80.9011278]
[1754117186713,0.2,162.85,162.84,64.11644383]
[1754117187713,0.2,162.85,162.84,81.51522752]
[1754117187918,0.2,162.85,162.84,83.97593352]
[1754117188214,0.2,162.85,162.84,90.11693081]
[1754117189590,0.2,162.85,162.84,83.97593352]
[1754117189791,0.2,162.85,162.84,37.4318338]
[1754117190013,0.2,162.85,162.84,83.2818338]
[1754117190217,0.2,162.85,162.84,64.40538997]
[1754117190395,0.2,162.85,162.84,20.64714983]
[1754117190595,0.2,162.85,162.84,65.82714983]
[1754117190994,0.2,162.85,162.84,47.640706]
[1754117191303,0.2,162.85,162.84,65.82714983]
[1754117192393,0.2,162.85,162.84,66.50714983]
[1754117193430,0.2,162.85,162.84,48.320706]
[1754117193723,0.2,162.85,162.84,66.50714983]
[1754117194091,0.2,162.85,162.84,83.2918338]
[1754117195912,0.2,162.85,162.84,83.2118338]
[1754117197530,0.2,162.86,162.85,16.78468397]
[1754117197702,0.2,162.89,162.88,42.78468397]
[1754117197901,0.2,162.89,162.88,106.2111278]
[1754117198119,0.2,162.89,162.88,106.8911278]
[1754117198490,0.2,162.89,162.88,125.07757163]
[1754117198693,0.2,162.93,162.92,42.78468397]
[1754117198917,0.2,162.93,162.92,106.1911278]
[1754117199121,0.2,162.93,162.92,107.48492598]
[1754117199935,0.2,162.93,162.92,89.29848215]
[1754117200220,0.2,162.93,162.92,113.62290781]
[1754117200610,0.1,163.01,162.97,16.78468397]
[1754117200800,0.1,163.01,163.0,18.18644383]
[1754117201005,0.1,163.01,163.0,63.50644383]
[1754117201234,0.1,163.01,163.0,80.9711278]
[1754117201535,0.1,163.01,163.0,81.58462473]
[1754117202035,0.1,163.01,163.0,99.77106856]
[1754117202326,0.1,163.01,163.0,81.58462473]
[1754117202512,0.1,163.01,163.0,99.77106856]
[1754117203046,0.03,163.03,163.0,105.90603788]
[1754117203321,0.03,163.03,163.02,34.9711278]
[1754117203621,0.03,163.03,163.02,87.01876612]
[1754117203808,0.03,163.03,163.02,81.56454946]
[1754117204821,0.03,163.03,163.02,36.26454946]
[1754117205020,0.03,163.03,163.02,81.56454946]
[1754117205639,0.1,163.04,163.02,81.56454946]
[1754117205640,0.1,163.04,163.03,34.9711278]
[1754117205805,18.18644383,163.16,163.07,16.78468397]
[1754117206147,0.72,163.15,163.1,34.9711278]
[1754117206299,18.18644383,163.19,163.14,18.18644383]
[1754117206627,0.72,163.18,163.16,18.18644383]
[1754117206934,26.0,163.24,163.17,45.24]
[1754117207099,18.18644383,163.2,163.17,45.22]
[1754117207296,0.72,163.23,163.17,45.22]
[1754117207540,18.18644383,163.19,163.17,45.22]
[1754117207706,0.72,163.18,163.16,45.24]
[1754117207908,16.78468397,163.27,163.16,45.24]
[1754117208128,18.18644383,163.22,163.17,18.18644383]
[1754117208310,18.90644383,163.21,163.16,63.42644383]
[1754117208508,0.72,163.2,163.16,45.24]
[1754117208827,0.72,163.2,163.17,18.18644383]
[1754117209026,0.72,163.2,163.18,45.22]
[1754117209245,0.72,163.2,163.18,63.40644383]
[1754117209406,0.72,163.2,163.18,45.22]
[1754117209610,0.72,163.2,163.18,63.40644383]
[1754117209914,26.0,163.25,163.18,63.40644383]
[1754117210148,18.90644383,163.24,163.19,18.18644383]
[1754117210314,0.72,163.24,163.2,45.22]
[1754117210500,0.72,163.23,163.21,18.18644383]
[1754117210819,0.72,163.23,163.22,45.22]
[1754117211023,0.72,163.25,163.22,45.22]
[1754117211204,0.72,163.26,163.22,45.22]
[1754117211400,68.12676485,163.35,163.22,63.40644383]
[1754117211619,18.90644383,163.26,163.22,63.40644383]
[1754117211814,0.72,163.25,163.22,63.40644383]
[1754117212340,51.34208088,163.35,163.22,45.22]
[1754117212341,16.78468397,163.34,163.22,45.22]
[1754117212512,0.72,163.28,163.24,18.18644383]
[1754117212707,18.18644383,163.3,163.25,63.76644383]
[1754117212912,45.22,163.35,163.25,63.76644383]
[1754117212913,0.72,163.29,163.26,18.18644383]
[1754117213101,0.72,163.32,163.28,18.18644383]
[1754117213301,0.72,163.32,163.29,45.66]
[1754117213604,0.72,163.31,163.29,45.66]
[1754117214020,0.72,163.3,163.28,45.66]
[1754117214224,0.72,163.29,163.26,45.66]
[1754117214428,0.72,163.28,163.26,45.66]
[1754117214630,6.12115737,163.37,163.25,45.68]
[1754117214631,18.90644383,163.27,163.25,45.68]
[1754117214838,18.90644383,163.26,163.21,26.0]
[1754117215003,18.90644383,163.26,163.12,44.22]
[1754117215004,0.72,163.25,163.15,17.46468397]
[1754117215204,0.72,163.25,163.16,45.7]
[1754117215515,18.18644383,163.2,163.15,26.0]
[1754117215720,18.90644383,163.19,163.16,45.74]
[1754117215944,0.72,163.19,163.16,45.74]
[1754117216229,18.18644383,163.17,163.14,45.76]
[1754117216442,0.72,163.17,163.14,45.76]
[1754117217163,18.90644383,163.17,163.14,45.76]
[1754117217327,0.72,163.17,163.14,45.76]
[1754117217517,0.72,163.16,163.14,45.76]
[1754117217717,0.72,163.16,163.12,63.92644383]
[1754117217931,18.18644383,163.17,163.11,16.78468397]
[1754117218137,18.18644383,163.17,163.12,63.90644383]
[1754117218322,18.90644383,163.16,163.09,0.68]
[1754117218533,18.90644383,163.16,163.11,18.18644383]
[1754117218872,0.72,163.15,163.11,44.18644383]
[1754117219029,18.90644383,163.15,163.11,26.0]
[1754117219859,0.72,163.15,163.11,26.0]
[1754117220056,18.90644383,163.15,163.1,18.18644383]
[1754117220227,18.90644383,163.14,163.1,63.84644383]
[1754117220428,18.90644383,163.14,163.1,45.66]
[1754117220638,44.18644383,163.2,163.1,45.66]
[1754117220948,18.18644383,163.15,163.11,18.18644383]
[1754117221147,0.66,163.15,163.11,18.18644383]
[1754117221357,18.84644383,163.15,163.11,18.18644383]
[1754117221550,18.84644383,163.15,163.1,64.55644383]
[1754117221863,18.18644383,163.11,163.07,18.422426]
[1754117222167,18.18644383,163.11,163.07,45.62]
[1754117222325,18.18644383,163.08,163.05,18.429217]
[1754117222680,18.18644383,163.06,163.05,18.429217]
[1754117222870,18.18644383,163.1,163.05,18.429217]
[1754117223074,0.66,163.06,163.02,45.6]
[1754117223227,18.18644383,163.05,163.02,45.6]
[1754117223426,18.18644383,163.05,163.02,46.31]
[1754117224071,18.18644383,163.03,163.0,0.71]
[1754117224250,0.66,163.07,163.0,46.29]
[1754117224567,18.18644383,163.05,163.0,64.47644383]
[1754117224768,18.18644383,163.05,163.01,0.71]
[1754117224967,18.18644383,163.04,163.01,0.71]
[1754117225345,0.66,163.07,163.0,45.58]
[1754117225542,18.18644383,163.02,163.0,45.58]
[1754117226180,18.18644383,163.07,163.01,18.89644383]
[1754117226384,18.18644383,163.07,163.03,18.18644383]
[1754117226671,18.18644383,163.05,163.02,0.71]
[1754117226876,18.18644383,163.05,163.0,45.54]
[1754117227173,18.18644383,163.05,163.01,18.18644383]
[1754117227379,18.18644383,163.06,163.01,18.18644383]
[1754117227551,18.18644383,163.06,163.01,18.89644383]
[1754117228061,0.66,163.06,163.01,18.89644383]
[1754117228279,18.84644383,163.06,163.01,18.89644383]
[1754117228563,18.18644383,163.03,163.0,45.54]
[1754117228769,18.18644383,163.02,162.98,72.17]
[1754117229149,0.66,163.05,162.99,0.71]
[1754117229349,18.18644383,163.03,162.99,0.71]
[1754117229549,18.18644383,163.04,163.0,18.89644383]
[1754117229960,18.18644383,163.03,162.98,71.46]
[1754117230282,50.31772132,163.1,162.98,45.46]
[1754117230283,18.18644383,163.01,162.98,45.46]
[1754117231241,18.18644383,163.02,162.98,45.46]
[1754117231460,18.18644383,163.04,163.0,18.18644383]
[1754117231663,18.18644383,163.04,163.0,0.71]
[1754117231977,0.66,163.05,163.0,0.71]
[1754117232276,26.0,163.07,162.98,45.46]
[1754117232277,18.18644383,163.01,162.98,45.46]
[1754117232449,18.84644383,163.01,162.98,45.46]
[1754117232848,26.0,163.07,162.98,45.46]
[1754117233049,18.18644383,163.01,162.98,45.46]
[1754117233562,18.18644383,163.02,162.98,45.46]
[1754117233883,18.18644383,163.03,162.98,18.18644383]
[1754117234060,18.18644383,163.03,162.99,0.71]
[1754117234380,18.18644383,163.02,162.97,18.89644383]
[1754117234571,18.18644383,163.02,163.0,0.06]
[1754117234883,18.84644383,163.01,163.0,0.06]
[1754117235055,18.18644383,163.01,163.0,0.06]
[1754117235966,0.66,163.04,163.0,0.06]
[1754117236159,18.18644383,163.02,163.0,0.06]
[1754117236476,18.18644383,163.01,163.0,0.06]
[1754117236658,18.84644383,163.01,163.0,0.06]
[1754117238379,18.18644383,163.01,163.0,0.06]
[1754117238579,0.66,163.04,163.0,0.06]
[1754117238783,18.18644383,163.03,163.0,0.77]
[1754117239083,18.18644383,163.04,163.01,0.71]
[1754117239254,18.18644383,163.05,163.01,0.71]
[1754117239977,146.1,163.06,163.01,0.71]
[1754117240162,18.18644383,163.05,163.01,0.71]
[1754117240364,146.1,163.06,163.02,0.71]
[1754117240565,164.28644383,163.06,163.02,0.71]
[1754117240777,18.18644383,163.05,163.0,44.95644383]
[1754117240974,18.18644383,163.03,163.0,26.06]
[1754117241157,0.66,163.04,163.0,26.06]
[1754117241359,18.18644383,163.03,163.0,26.06]
[1754117241555,18.84644383,163.02,163.0,0.06]
[1754117241782,18.18644383,163.01,163.0,0.06]
[1754117241961,0.66,163.05,163.0,0.06]
[1754117242154,18.18644383,163.03,163.0,0.77]
[1754117242364,146.76,163.06,163.0,0.77]
[1754117242698,18.18644383,163.01,163.0,0.06]
[1754117243193,18.84644383,163.01,163.0,0.06]
[1754117245360,0.66,163.01,163.0,0.06]
[1754117245563,45.9,163.03,163.0,0.06]
[1754117245802,18.18644383,163.01,163.0,0.06]
[1754117246498,18.84644383,163.01,163.0,0.06]
[1754117247985,64.10644383,163.01,163.0,0.06]
[1754117248568,82.29288766,163.01,163.0,0.06]
[1754117249057,99.07757163,163.01,163.0,0.06]
[1754117249995,105.21216459,163.01,163.0,0.06]
[1754117250591,105.21216459,163.01,162.98,0.06]
[1754117250592,26.0,162.99,162.98,0.06]
[1754117250803,44.18644383,162.99,162.98,0.06]
[1754117251098,44.84644383,162.99,162.98,0.06]
[1754117251679,61.6311278,162.99,162.98,0.06]
[1754117251876,16.78468397,162.98,162.84,16.78468397]
[1754117252089,16.78468397,162.98,162.86,0.66]
[1754117252090,18.18644383,162.88,162.86,0.66]
[1754117252304,18.18644383,162.88,162.84,26.0]
[1754117252589,18.18644383,162.88,162.87,0.66]
[1754117253092,18.18644383,162.88,162.83,18.18644383]
[1754117253093,18.18644383,162.88,162.85,0.86]
[1754117253299,18.18644383,162.88,162.86,0.66]
[1754117253603,18.18644383,162.88,162.85,0.2]
[1754117253604,18.18644383,162.87,162.85,0.2]
[1754117253895,18.18644383,162.86,162.85,0.86]
[1754117256002,0.66,162.91,162.85,0.86]
[1754117256194,18.18644383,162.87,162.85,0.86]
[1754117256695,63.40644383,162.92,162.86,18.84644383]
[1754117256908,18.18644383,162.93,162.88,18.18644383]
[1754117257089,18.18644383,162.93,162.89,0.66]
[1754117257404,63.36644383,162.95,162.91,18.18644383]
[1754117257603,45.82,162.98,162.92,0.66]
[1754117257792,18.18644383,162.95,162.92,0.66]
[1754117258288,18.18644383,162.95,162.93,0.66]
[1754117258494,18.18644383,162.96,162.91,18.18644383]
[1754117258799,45.16,162.98,162.94,18.84644383]
[1754117258800,63.34644383,162.98,162.94,18.84644383]
[1754117258997,18.18644383,163.0,162.95,18.84644383]
[1754117259180,18.18644383,163.0,162.96,0.66]
[1754117259382,0.03,163.01,162.97,0.66]
[1754117259586,0.03,163.01,162.99,18.18644383]
[1754117259781,0.03,163.01,163.0,0.66]
[1754117260220,0.03,163.01,163.0,44.84644383]
[1754117261992,0.03,163.01,163.0,35.6311278]
[1754117262193,0.03,163.01,163.0,53.81757163]
[1754117262496,17.76918743,163.11,163.03,16.78468397]
[1754117262700,18.18644383,163.1,163.05,18.18644383]
[1754117263001,0.66,163.13,163.06,0.66]
[1754117263202,18.18644383,163.08,163.03,16.78468397]
[1754117263386,0.66,163.07,163.0,26.0]
[1754117263710,18.18644383,163.04,163.0,26.66]
[1754117263893,18.18644383,163.04,163.01,0.66]
[1754117264614,18.18644383,163.04,162.99,18.18644383]
[1754117264615,0.66,163.07,162.99,18.84644383]
[1754117264811,18.18644383,163.03,162.99,18.84644383]
[1754117264993,18.18644383,163.04,163.0,0.66]
[1754117265193,0.66,163.07,163.01,0.66]
[1754117265591,18.18644383,163.03,163.01,0.66]
[1754117265798,18.18644383,163.03,162.99,18.18644383]
[1754117265799,18.18644383,163.03,162.99,18.84644383]
[1754117266009,18.18644383,163.02,162.99,0.66]
[1754117266200,18.18644383,163.03,162.99,0.66]
[1754117266398,18.18644383,163.04,162.99,18.84644383]
[1754117266605,18.18644383,163.03,163.0,0.66]
[1754117266807,0.66,163.08,163.0,0.66]
[1754117267006,18.18644383,163.03,163.0,0.66]
[1754117267199,18.18644383,163.03,163.01,0.66]
[1754117267518,18.18644383,163.04,163.01,0.66]
[1754117267721,18.18644383,163.02,162.98,26.66]
[1754117267902,18.18644383,163.02,162.98,26.0]
[1754117268407,18.18644383,163.01,162.99,0.66]
[1754117268716,18.18644383,163.01,162.98,26.0]
[1754117269303,18.18644383,163.01,162.98,26.66]
[1754117269712,18.18644383,162.99,162.95,16.78468397]
[1754117269914,18.18644383,162.98,162.96,26.0]
[1754117270112,18.18644383,162.97,162.93,16.78468397]
[1754117270314,0.66,162.99,162.94,26.0]
[1754117270315,18.18644383,162.96,162.94,26.0]
[1754117270498,18.18644383,162.97,162.94,26.0]
[1754117270824,18.18644383,162.96,162.94,26.0]
[1754117270995,18.18644383,162.97,162.94,26.66]
[1754117271409,18.18644383,162.97,162.94,26.0]
[1754117271624,18.18644383,162.96,162.92,18.18644383]
[1754117271825,18.18644383,162.96,162.93,0.66]
[1754117272131,18.18644383,162.97,162.93,0.66]
[1754117273915,0.66,163.03,162.96,18.18644383]
[1754117274115,18.18644383,163.01,162.97,18.84644383]
[1754117274320,18.18644383,163.01,162.98,0.66]
[1754117275206,0.66,163.03,162.98,0.66]
[1754117275534,18.18644383,163.02,162.97,18.18644383]
[1754117275719,18.18644383,163.02,162.98,0.66]
[1754117276107,45.04,163.04,163.0,18.18644383]
[1754117276325,18.18644383,163.05,163.01,0.66]
[1754117276921,18.18644383,163.04,162.99,18.84644383]
[1754117277121,18.18644383,163.04,163.0,18.84644383]
[1754117277501,18.18644383,163.07,163.02,18.18644383]
[1754117277702,18.18644383,163.08,163.04,18.18644383]
[1754117278024,18.18644383,163.08,163.04,0.66]
[1754117278528,18.84644383,163.08,163.03,18.18644383]
[1754117278713,18.84644383,163.08,163.03,18.84644383]
[1754117278907,18.18644383,163.08,163.04,0.66]
[1754117279114,45.07,163.09,163.05,18.18644383]
[1754117279314,45.07,163.09,163.06,18.84644383]
[1754117279315,0.03,163.09,163.06,18.84644383]
[1754117279520,0.03,163.07,163.06,0.66]
[1754117280244,0.03,163.07,163.06,18.84644383]
[1754117280806,0.03,163.07,163.05,18.18644383]
[1754117281013,0.03,163.07,163.05,34.9711278]
[1754117281222,0.03,163.07,163.06,18.87644383]
[1754117282019,0.03,163.07,163.06,18.18644383]
[1754117282207,0.03,163.07,163.05,34.9711278]
[1754117282730,0.03,163.07,163.05,16.78468397]
[1754117282939,0.03,163.07,163.05,35.00112797]
[1754117283305,0.03,163.07,163.04,16.78468397]
[1754117283602,0.03,163.07,163.03,107.44288783]
[1754117283803,0.03,163.07,163.03,108.13288783]
[1754117284002,18.21644383,163.07,163.03,89.946444]
[1754117284207,0.03,163.07,163.04,0.69]
[1754117284426,0.03,163.07,163.03,107.41288783]
[1754117284837,0.03,163.07,163.03,89.91644383]
[1754117285012,0.03,163.07,163.04,17.47468397]
[1754117285201,0.03,163.07,163.05,34.9711278]
[1754117285512,0.03,163.07,163.05,17.47468397]
[1754117285906,0.03,163.07,163.05,16.78468397]
[1754117286109,0.03,163.07,163.04,18.186443]
[1754117286327,0.03,163.07,163.03,89.22644383]
[1754117286526,0.03,163.07,163.04,18.18644383]
[1754117286804,0.03,163.07,163.04,18.87644383]
[1754117287119,0.03,163.07,163.05,18.87644383]
[1754117287320,0.03,163.07,163.05,0.69]
[1754117287705,0.03,163.07,163.04,16.78468397]
[1754117287706,0.03,163.07,163.04,18.18644383]
[1754117288040,0.03,163.07,163.03,63.06288783]
[1754117288330,18.18644383,163.05,163.03,18.186444]
[1754117288499,0.03,163.07,163.03,18.186444]
[1754117288500,18.18644383,163.04,163.03,18.186444]
[1754117288708,18.87644383,163.04,163.03,18.186444]